[Event "LM 2019"]
[Site "Linköping, Sweden"]
[Date "2019.02.05"]
[Round "3.6"]
[White "Stefanovic, Dragan"]
[Black "Namvar, Daniel"]
[Result "1-0"]
[TimeControl "90 min + 30 sec/move"]
[WhiteElo "1812"]
[BlackElo "1496"]

1. e4 {[%clk 01:30:55]} {[%emt 00:00:04]} c5 {[%clk 01:29:10]} {[%emt
00:01:50]} 2. c3 {[%clk 01:31:08]} {[%emt 00:00:17]} g6 {[%clk 01:29:20]}
{[%emt 00:00:20]} 3. f4 {[%clk 01:31:23]} {[%emt 00:00:15]} d5 {[%clk
01:27:40]} {[%emt 00:02:10]} 4. e5 {[%clk 01:31:22]} {[%emt 00:00:32]} Bg7
{[%clk 01:27:10]} {[%emt 00:01:00]} 5. d4 {[%clk 01:31:32]} {[%emt 00:00:20]}
cxd4 {[%clk 01:27:24]} {[%emt 00:00:16]} 6. cxd4 {[%clk 01:32:00]} {[%emt
00:00:02]} Nc6 {[%clk 01:24:03]} {[%emt 00:03:51]} 7. h3 {[%clk 01:29:33]}
{[%emt 00:02:57]} Nh6 {[%clk 01:20:36]} {[%emt 00:03:57]} 8. Nf3 {[%clk
01:25:57]} {[%emt 00:04:06]} f6 {[%clk 01:16:48]} {[%emt 00:04:17]} 9. Nc3
{[%clk 01:26:01]} {[%emt 00:00:25]} fxe5 {[%clk 01:15:56]} {[%emt 00:01:22]} 10.
fxe5 {[%clk 01:26:17]} {[%emt 00:00:15]} Nf5 {[%clk 01:10:35]} {[%emt
00:05:51]} 11. g4 {[%clk 01:25:30]} {[%emt 00:01:18]} Ng3 {[%clk 01:09:53]}
{[%emt 00:01:12]} 12. Rg1 {[%clk 01:25:02]} {[%emt 00:00:59]} Nxf1 {[%clk
01:09:35]} {[%emt 00:00:47]} 13. Rxf1 {[%clk 01:25:30]} {[%emt 00:00:03]} O-O
{[%clk 00:57:57]} {[%emt 00:12:08]} 14. Qb3 {[%clk 01:24:42]} {[%emt 00:01:17]}
Rxf3 {[%clk 00:51:08]} {[%emt 00:07:19]} 15. Rxf3 {[%clk 01:23:43]} {[%emt
00:01:30]} Nxd4 {[%clk 00:51:11]} {[%emt 00:00:28]} 16. Qd1 {[%clk 01:23:51]}
{[%emt 00:00:22]} Nxf3+ {[%clk 00:50:48]} {[%emt 00:00:53]} 17. Qxf3 {[%clk
01:24:10]} {[%emt 00:00:10]} Be6 {[%clk 00:48:18]} {[%emt 00:02:59]} 18. Bf4
{[%clk 01:23:32]} {[%emt 00:01:08]} Qa5 {[%clk 00:43:14]} {[%emt 00:05:34]} 19.
O-O-O {[%clk 01:16:29]} {[%emt 00:07:34]} Rc8 {[%clk 00:40:38]} {[%emt
00:03:06]} 20. Kb1 {[%clk 01:16:54]} {[%emt 00:00:04]} Rf8 {[%clk 00:32:50]}
{[%emt 00:08:17]} 21. Qe3 {[%clk 01:14:34]} {[%emt 00:02:48]} b5 {[%clk
00:27:13]} {[%emt 00:06:11]} 22. Nxd5 {[%clk 01:11:28]} {[%emt 00:03:35]} b4
{[%clk 00:24:20]} {[%emt 00:03:23]} 23. Nxe7+ {[%clk 01:08:10]} {[%emt
00:03:48]} Kh8 {[%clk 00:24:14]} {[%emt 00:00:35]} 24. b3 {[%clk 01:07:38]}
{[%emt 00:01:03]} g5 {[%clk 00:19:58]} {[%emt 00:04:45]} 25. Bg3 {[%clk
01:02:24]} {[%emt 00:05:42]} Rd8 {[%clk 00:10:58]} {[%emt 00:09:33]} 26. Rc1
{[%clk 01:01:12]} {[%emt 00:01:42]} Bd5 {[%clk 00:03:50]} {[%emt 00:07:39]} 27.
Nf5 {[%clk 01:00:30]} {[%emt 00:01:05]} h6 {[%clk 00:00:38]} {[%emt 00:03:49]}
28. Nxg7 {[%clk 01:00:26]} {[%emt 00:00:34]} Kxg7 {[%clk 00:01:07]} {[%emt
00:00:02]} 29. e6 {[%clk 01:00:07]} {[%emt 00:00:49]} 1-0

[Event "LM 2019"]
[Site "Linköping, Sweden"]
[Date "2019.02.05"]
[Round "3.8"]
[White "Ingemansson, Björn"]
[Black "Jakobsson, Leif"]
[Result "1-0"]
[TimeControl "90 min + 30 sec/move"]
[WhiteElo "1671"]
[BlackElo "1582"]

1. d4 {[%clk 01:30:49]} {[%emt 00:00:11]} Nf6 {[%clk 01:30:37]} {[%emt
00:00:23]} 2. c4 {[%clk 01:31:08]} {[%emt 00:00:12]} e6 {[%clk 01:30:47]}
{[%emt 00:00:20]} 3. Nc3 {[%clk 01:31:33]} {[%emt 00:00:06]} c5 {[%clk
01:28:10]} {[%emt 00:03:07]} 4. d5 {[%clk 01:30:41]} {[%emt 00:01:22]} d6
{[%clk 01:26:09]} {[%emt 00:02:30]} 5. e4 {[%clk 01:30:23]} {[%emt 00:00:48]}
exd5 {[%clk 01:24:31]} {[%emt 00:02:09]} 6. cxd5 {[%clk 01:28:52]} {[%emt
00:02:00]} Be7 {[%clk 01:23:18]} {[%emt 00:01:43]} 7. Nf3 {[%clk 01:27:59]}
{[%emt 00:01:23]} b6 {[%clk 01:21:00]} {[%emt 00:02:49]} 8. Bd3 {[%clk
01:24:55]} {[%emt 00:03:33]} O-O {[%clk 01:17:04]} {[%emt 00:02:05]} 9. h3
{[%clk 01:24:48]} {[%emt 00:02:58]} Ba6 {[%clk 01:13:11]} {[%emt 00:04:24]} 10.
Bf4 {[%clk 01:18:20]} {[%emt 00:06:57]} c4 {[%clk 01:03:49]} {[%emt 00:09:52]}
11. Be2 {[%clk 01:16:42]} {[%emt 00:02:07]} Nbd7 {[%clk 01:02:43]} {[%emt
00:01:36]} 12. b4 {[%clk 01:14:56]} {[%emt 00:02:17]} Nh5 {[%clk 00:56:21]}
{[%emt 00:06:52]} 13. Bh2 {[%clk 01:13:20]} {[%emt 00:02:06]} Bf6 {[%clk
00:50:06]} {[%emt 00:06:45]} 14. Nd4 {[%clk 01:11:27]} {[%emt 00:02:24]} g6
{[%clk 00:41:33]} {[%emt 00:09:02]} 15. Bxd6 {[%clk 01:00:08]} {[%emt
00:11:48]} Re8 {[%clk 00:34:43]} {[%emt 00:07:20]} 16. O-O {[%clk 00:52:16]}
{[%emt 00:08:23]} Ne5 {[%clk 00:32:07]} {[%emt 00:03:05]} 17. Bxe5 {[%clk
00:51:06]} {[%emt 00:01:40]} Bxe5 {[%clk 00:32:14]} {[%emt 00:00:24]} 18. b5
{[%clk 00:46:38]} {[%emt 00:04:58]} Qf6 {[%clk 00:29:34]} {[%emt 00:03:10]} 19.
Nc6 {[%clk 00:32:37]} {[%emt 00:14:32]} Bxc3 {[%clk 00:26:32]} {[%emt
00:03:31]} 20. bxa6 {[%clk 00:30:42]} {[%emt 00:02:25]} Bxa1 {[%clk 00:22:18]}
{[%emt 00:04:44]} 21. Qxa1 {[%clk 00:25:53]} {[%emt 00:05:20]} Qxa1 {[%clk
00:20:27]} {[%emt 00:02:21]} 22. Rxa1 {[%clk 00:26:21]} {[%emt 00:00:02]} Rxe4
{[%clk 00:20:25]} {[%emt 00:00:31]} 23. Bf3 {[%clk 00:24:07]} {[%emt 00:02:44]}
Ree8 {[%clk 00:18:11]} {[%emt 00:02:35]} 24. d6 {[%clk 00:22:30]} {[%emt
00:02:17]} Nf6 {[%clk 00:09:57]} {[%emt 00:08:44]} 25. Ne7+ {[%clk 00:22:14]}
{[%emt 00:00:46]} Rxe7 {[%clk 00:10:11]} {[%emt 00:00:16]} 26. dxe7 {[%clk
00:21:28]} {[%emt 00:01:16]} Re8 {[%clk 00:07:54]} {[%emt 00:02:46]} 27. Re1
{[%clk 00:19:14]} {[%emt 00:02:44]} Rc8 {[%clk 00:06:18]} {[%emt 00:02:07]} 28.
Bb7 {[%clk 00:19:17]} {[%emt 00:00:27]} Re8 {[%clk 00:05:35]} {[%emt 00:01:12]}
29. Bc6 {[%clk 00:19:24]} {[%emt 00:00:24]} Rc8 {[%clk 00:05:43]} {[%emt
00:00:22]} 30. e8=Q+ {[%clk 00:18:33]} {[%emt 00:01:21]} Nxe8 {[%clk 00:05:41]}
{[%emt 00:00:33]} 31. Rxe8+ {[%clk 00:18:50]} {[%emt 00:00:12]} Rxe8 {[%clk
00:06:05]} {[%emt 00:00:07]} 32. Bxe8 {[%clk 00:18:34]} {[%emt 00:00:46]} c3
{[%clk 00:06:17]} {[%emt 00:00:17]} 33. Ba4 {[%clk 00:18:59]} {[%emt 00:00:05]}
b5 {[%clk 00:06:10]} {[%emt 00:00:37]} 34. Bb3 {[%clk 00:18:06]} {[%emt
00:01:21]} b4 {[%clk 00:05:39]} {[%emt 00:01:02]} 35. Kf1 {[%clk 00:18:29]}
{[%emt 00:00:06]} Kf8 {[%clk 00:05:55]} {[%emt 00:00:15]} 36. Ke2 {[%clk
00:18:53]} {[%emt 00:00:07]} Ke7 {[%clk 00:05:32]} {[%emt 00:00:53]} 37. Kd3
{[%clk 00:19:14]} {[%emt 00:00:08]} f5 {[%clk 00:05:04]} {[%emt 00:00:59]} 38.
f4 {[%clk 00:18:41]} {[%emt 00:01:03]} Kf6 {[%clk 00:04:22]} {[%emt 00:01:13]}
39. h4 {[%clk 00:18:14]} {[%emt 00:00:56]} h6 {[%clk 00:04:24]} {[%emt
00:00:29]} 40. Kc4 {[%clk 00:18:08]} {[%emt 00:00:35]} g5 {[%clk 00:04:33]}
{[%emt 00:00:21]} 41. hxg5+ {[%clk 00:18:21]} {[%emt 00:00:17]} hxg5 {[%clk
00:04:53]} {[%emt 00:00:10]} 42. fxg5+ {[%clk 00:18:45]} {[%emt 00:00:07]} Kxg5
{[%clk 00:05:17]} {[%emt 00:00:05]} 43. Kxb4 {[%clk 00:19:05]} {[%emt
00:00:10]} Kg4 {[%clk 00:04:59]} {[%emt 00:00:49]} 44. Kxc3 {[%clk 00:19:18]}
{[%emt 00:00:17]} f4 {[%clk 00:04:57]} {[%emt 00:00:32]} 45. Bd5 {[%clk
00:19:05]} {[%emt 00:00:42]} 1-0